[Event "Titled Tuesday Blitz April 18 Early 2023"]
[White "Danielyan, Vahe"]
[Black "Shimanov, Aleksandr"]
[WhiteFideId "13304828"]
[BlackFideId "4198603"]
[WhiteElo "2423"]
[BlackElo "2631"]
[Result "0-1"]
[Round "05"]
[TimeControl "180+2"]
[Date "2023.04.18"]
[WhiteClock "0:01:09"]
[BlackClock "0:01:49"]

1. e4 {[%clk 0:02:55]}  c6 {[%clk 0:02:52]} 2. d4 {[%clk 0:02:52]}  d5 {[%clk 0:02:53]} 3. e5 {[%clk 0:02:52]}  Bf5 {[%clk 0:02:53]} 4. h4 {[%clk 0:02:51]}  h6 {[%clk 0:02:47]} 5. g4 {[%clk 0:02:50]}  Bd7 {[%clk 0:02:47]} 6. Be3 {[%clk 0:02:47]}  h5 {[%clk 0:02:38]} 7. gxh5 {[%clk 0:02:45]}  Nh6 {[%clk 0:02:38]} 8. Bd3 {[%clk 0:02:41]}  Bg4 {[%clk 0:02:35]} 9. Qd2 {[%clk 0:02:28]}  e6 {[%clk 0:02:32]} 10. Ne2 {[%clk 0:02:18]}  Qb6 {[%clk 0:02:29]} 11. Nbc3 {[%clk 0:02:17]}  Bxh5 {[%clk 0:02:20]} 12. Nf4 {[%clk 0:02:07]}  Bg4 {[%clk 0:02:19]} 13. Rg1 {[%clk 0:02:07]}  Bf5 {[%clk 0:02:19]} 14. O-O-O {[%clk 0:02:03]}  Bxd3 {[%clk 0:02:16]} 15. Qxd3 {[%clk 0:01:58]}  Nf5 {[%clk 0:02:16]} 16. h5 {[%clk 0:01:54]}  Qa6 {[%clk 0:02:15]} 17. Qd2 {[%clk 0:01:24]}  Nd7 {[%clk 0:02:13]} 18. Kb1 {[%clk 0:01:13]}  b5 {[%clk 0:02:10]} 19. Rg5 {[%clk 0:01:12]}  Nb6 {[%clk 0:02:06]} 20. Rxf5 {[%clk 0:01:11]}  exf5 {[%clk 0:01:51]} 21. e6 {[%clk 0:01:12]}  b4 {[%clk 0:01:49]} 22. exf7+ {[%clk 0:01:10]}  Kxf7 {[%clk 0:01:50]} 23. Qd3 {[%clk 0:01:09]}  Qxd3 {[%clk 0:01:49]} 0-1


[Site "https://www.chess.com"]

[Event "Titled Tuesday Blitz April 18 Early 2023"]
[White "MKlose11"]
[Black "Anton Guijarro, David"]
[BlackFideId "2285525"]
[WhiteElo "2587"]
[BlackElo "2618"]
[Result "0-1"]
[Round "05"]
[TimeControl "180+2"]
[Date "2023.04.18"]
[WhiteClock "0:00:04"]
[BlackClock "0:00:20"]

1. e4 {[%clk 0:03:00]}  c5 {[%clk 0:02:59]} 2. Nc3 {[%clk 0:02:53]}  Nc6 {[%clk 0:02:58]} 3. g3 {[%clk 0:02:53]}  g6 {[%clk 0:02:53]} 4. Bg2 {[%clk 0:02:52]}  Bg7 {[%clk 0:02:53]} 5. d3 {[%clk 0:02:52]}  Rb8 {[%clk 0:02:52]} 6. Be3 {[%clk 0:02:51]}  d6 {[%clk 0:02:52]} 7. Qd2 {[%clk 0:02:51]}  b5 {[%clk 0:02:51]} 8. Nge2 {[%clk 0:02:50]}  b4 {[%clk 0:02:48]} 9. Nd1 {[%clk 0:02:50]}  Nf6 {[%clk 0:02:33]} 10. h3 {[%clk 0:02:50]}  O-O {[%clk 0:02:29]} 11. Bh6 {[%clk 0:02:50]}  d5 {[%clk 0:02:27]} 12. Bxg7 {[%clk 0:02:45]}  Kxg7 {[%clk 0:02:27]} 13. exd5 {[%clk 0:02:45]}  Nxd5 {[%clk 0:02:27]} 14. Ne3 {[%clk 0:02:42]}  Be6 {[%clk 0:02:11]} 15. O-O {[%clk 0:02:37]}  Qd7 {[%clk 0:02:05]} 16. Rfe1 {[%clk 0:02:28]}  Rfe8 {[%clk 0:02:00]} 17. a3 {[%clk 0:02:10]}  b3 {[%clk 0:01:29]} 18. c3 {[%clk 0:01:54]}  Rbd8 {[%clk 0:01:22]} 19. Rad1 {[%clk 0:01:49]}  Nb6 {[%clk 0:01:08]} 20. Nf4 {[%clk 0:01:44]}  Qc8 {[%clk 0:00:56]} 21. Nxe6+ {[%clk 0:01:41]}  Qxe6 {[%clk 0:00:57]} 22. Ng4 {[%clk 0:01:07]}  Qd6 {[%clk 0:00:58]} 23. Qh6+ {[%clk 0:01:03]}  Kg8 {[%clk 0:00:58]} 24. Qe3 {[%clk 0:01:02]}  Nd7 {[%clk 0:00:33]} 25. Bxc6 {[%clk 0:00:46]}  Qxc6 {[%clk 0:00:34]} 26. d4 {[%clk 0:00:47]}  h5 {[%clk 0:00:26]} 27. Ne5 {[%clk 0:00:43]}  Nxe5 {[%clk 0:00:26]} 28. Qxe5 {[%clk 0:00:30]}  Rd5 {[%clk 0:00:26]} 29. Qe2 {[%clk 0:00:26]}  cxd4 {[%clk 0:00:20]} 30. Rxd4 {[%clk 0:00:25]}  Rxd4 {[%clk 0:00:21]} 31. cxd4 {[%clk 0:00:26]}  Qd7 {[%clk 0:00:20]} 32. Qe3 {[%clk 0:00:23]}  Qxh3 {[%clk 0:00:20]} 33. Qxb3 {[%clk 0:00:23]}  h4 {[%clk 0:00:21]} 34. Qf3 {[%clk 0:00:12]}  hxg3 {[%clk 0:00:21]} 35. Qxg3 {[%clk 0:00:12]}  Qd7 {[%clk 0:00:21]} 36. Qe5 {[%clk 0:00:10]}  e6 {[%clk 0:00:22]} 37. Kg2 {[%clk 0:00:11]}  Rd8 {[%clk 0:00:22]} 38. Rh1 {[%clk 0:00:10]}  Qd5+ {[%clk 0:00:22]} 39. Qxd5 {[%clk 0:00:06]}  Rxd5 {[%clk 0:00:23]} 40. Rh4 {[%clk 0:00:06]}  f5 {[%clk 0:00:22]} 41. Kf3 {[%clk 0:00:06]}  Kg7 {[%clk 0:00:22]} 42. Ke3 {[%clk 0:00:05]}  a5 {[%clk 0:00:23]} 43. Rh1 {[%clk 0:00:05]}  Rb5 {[%clk 0:00:23]} 44. Rb1 {[%clk 0:00:02]}  Rb3+ {[%clk 0:00:23]} 45. Kd2 {[%clk 0:00:03]}  a4 {[%clk 0:00:23]} 46. Kc2 {[%clk 0:00:03]}  Rf3 {[%clk 0:00:24]} 47. Rf1 {[%clk 0:00:04]}  g5 {[%clk 0:00:23]} 48. Kd2 {[%clk 0:00:04]}  g4 {[%clk 0:00:23]} 49. Ke2 {[%clk 0:00:04]}  Rb3 {[%clk 0:00:24]} 50. Rb1 {[%clk 0:00:05]}  Kf6 {[%clk 0:00:25]} 51. Kd2 {[%clk 0:00:05]}  f4 {[%clk 0:00:25]} 52. Ke2 {[%clk 0:00:05]}  Kf5 {[%clk 0:00:25]} 53. Kf1 {[%clk 0:00:04]}  f3 {[%clk 0:00:21]} 54. Kg1 {[%clk 0:00:04]}  Kf4 {[%clk 0:00:21]} 55. Re1 {[%clk 0:00:03]}  Rxb2 {[%clk 0:00:20]} 56. Rxe6 {[%clk 0:00:04]}  Rb1+ {[%clk 0:00:19]} 57. Kh2 {[%clk 0:00:04]}  Rf1 {[%clk 0:00:20]} 58. d5 {[%clk 0:00:04]}  Rxf2+ {[%clk 0:00:20]} 59. Kh1 {[%clk 0:00:05]}  Rd2 {[%clk 0:00:20]} 60. d6 {[%clk 0:00:05]}  Kg3 {[%clk 0:00:20]} 61. Re1 {[%clk 0:00:04]}  Rxd6 {[%clk 0:00:20]} 0-1


[Site "https://www.chess.com"]

[Event "Titled Tuesday Blitz April 18 Early 2023"]
[White "Iliaguev, Nisim"]
[Black "Dushyant Sharma"]
[WhiteFideId "2817276"]
[BlackFideId "25065130"]
[WhiteElo "2241"]
[BlackElo "2198"]
[Result "1-0"]
[Round "05"]
[TimeControl "180+2"]
[Date "2023.04.18"]
[WhiteClock "0:00:21"]
[BlackClock "0:00:05"]

1. d4 {[%clk 0:03:00]}  d5 {[%clk 0:03:00]} 2. Nf3 {[%clk 0:03:01]}  e6 {[%clk 0:03:00]} 3. g3 {[%clk 0:03:01]}  Nf6 {[%clk 0:03:00]} 4. Bg2 {[%clk 0:03:02]}  Be7 {[%clk 0:03:01]} 5. O-O {[%clk 0:03:03]}  O-O {[%clk 0:03:02]} 6. c4 {[%clk 0:03:03]}  dxc4 {[%clk 0:03:02]} 7. Ne5 {[%clk 0:03:04]}  c5 {[%clk 0:03:00]} 8. dxc5 {[%clk 0:03:04]}  Bxc5 {[%clk 0:03:01]} 9. Nxc4 {[%clk 0:03:04]}  Qc7 {[%clk 0:03:00]} 10. Qb3 {[%clk 0:03:00]}  Nc6 {[%clk 0:02:59]} 11. e3 {[%clk 0:02:53]}  e5 {[%clk 0:02:58]} 12. Nc3 {[%clk 0:02:39]}  Be6 {[%clk 0:02:56]} 13. Qa4 {[%clk 0:02:38]}  a6 {[%clk 0:02:39]} 14. Nd2 {[%clk 0:02:17]}  b5 {[%clk 0:02:37]} 15. Qd1 {[%clk 0:02:11]}  Rad8 {[%clk 0:02:35]} 16. Qe2 {[%clk 0:02:11]}  Rd7 {[%clk 0:02:16]} 17. a4 {[%clk 0:02:11]}  b4 {[%clk 0:01:47]} 18. Nce4 {[%clk 0:02:10]}  Nxe4 {[%clk 0:01:47]} 19. Nxe4 {[%clk 0:02:11]}  Be7 {[%clk 0:01:44]} 20. Qxa6 {[%clk 0:02:06]}  Na5 {[%clk 0:01:43]} 21. Nd2 {[%clk 0:01:56]}  Rfd8 {[%clk 0:01:13]} 22. b3 {[%clk 0:01:50]}  Rd6 {[%clk 0:00:48]} 23. Qb5 {[%clk 0:01:43]}  Bxb3 {[%clk 0:00:32]} 24. Nxb3 {[%clk 0:01:40]}  Nxb3 {[%clk 0:00:33]} 25. Rb1 {[%clk 0:01:35]}  Qc2 {[%clk 0:00:32]} 26. Bb2 {[%clk 0:00:44]}  Nd2 {[%clk 0:00:33]} 27. Bxe5 {[%clk 0:00:34]}  Nxf1 {[%clk 0:00:23]} 28. Rxf1 {[%clk 0:00:26]}  Rd1 {[%clk 0:00:23]} 29. a5 {[%clk 0:00:24]}  b3 {[%clk 0:00:19]} 30. a6 {[%clk 0:00:24]}  Qa2 {[%clk 0:00:14]} 31. Bd4 {[%clk 0:00:22]}  Rxf1+ {[%clk 0:00:09]} 32. Bxf1 {[%clk 0:00:22]}  h5 {[%clk 0:00:08]} 33. Kg2 {[%clk 0:00:21]}  Bf6 {[%clk 0:00:08]} 34. Bxf6 {[%clk 0:00:19]}  gxf6 {[%clk 0:00:09]} 35. Bc4 {[%clk 0:00:20]}  Ra8 {[%clk 0:00:06]} 36. Qb7 {[%clk 0:00:17]}  Rf8 {[%clk 0:00:06]} 37. Bxb3 {[%clk 0:00:18]}  Qa5 {[%clk 0:00:05]} 38. Bd5 {[%clk 0:00:18]}  Kg7 {[%clk 0:00:04]} 39. a7 {[%clk 0:00:18]}  Kg6 {[%clk 0:00:04]} 40. a8=Q {[%clk 0:00:19]}  Rxa8 {[%clk 0:00:05]} 41. Qxa8 {[%clk 0:00:20]}  Qc7 {[%clk 0:00:05]} 42. Qc6 {[%clk 0:00:20]}  Qe5 {[%clk 0:00:05]} 43. Be4+ {[%clk 0:00:21]}  Kg7 {[%clk 0:00:05]} 44. Qd5 {[%clk 0:00:21]} 1-0


[Site "https://www.chess.com"]

[Event "Titled Tuesday Blitz April 18 Early 2023"]
[White "Kosteniuk, Alexandra"]
[Black "Milchev, Nikolay"]
[WhiteFideId "4128125"]
[BlackFideId "2906090"]
[WhiteElo "2453"]
[BlackElo "2449"]
[Result "1-0"]
[Round "05"]
[TimeControl "180+2"]
[Date "2023.04.18"]
[WhiteClock "0:00:26"]
[BlackClock "0:00:33"]

1. Nf3 {[%clk 0:03:00]}  Nf6 {[%clk 0:02:59]} 2. g3 {[%clk 0:03:00]}  g6 {[%clk 0:02:59]} 3. Bg2 {[%clk 0:03:01]}  Bg7 {[%clk 0:03:00]} 4. c4 {[%clk 0:03:01]}  O-O {[%clk 0:03:00]} 5. O-O {[%clk 0:03:01]}  d6 {[%clk 0:03:01]} 6. d4 {[%clk 0:03:01]}  Nc6 {[%clk 0:03:00]} 7. d5 {[%clk 0:02:58]}  Na5 {[%clk 0:02:58]} 8. Nfd2 {[%clk 0:02:54]}  c5 {[%clk 0:02:56]} 9. e4 {[%clk 0:02:51]}  a6 {[%clk 0:02:55]} 10. Re1 {[%clk 0:02:41]}  b5 {[%clk 0:02:55]} 11. Bf1 {[%clk 0:02:42]}  Rb8 {[%clk 0:02:53]} 12. Nc3 {[%clk 0:02:39]}  b4 {[%clk 0:02:42]} 13. Ne2 {[%clk 0:02:38]}  Ng4 {[%clk 0:02:38]} 14. Nf4 {[%clk 0:02:32]}  Ne5 {[%clk 0:02:37]} 15. Rb1 {[%clk 0:02:29]}  b3 {[%clk 0:02:32]} 16. axb3 {[%clk 0:02:20]}  Qb6 {[%clk 0:02:31]} 17. Re3 {[%clk 0:02:16]}  Bd7 {[%clk 0:02:26]} 18. h3 {[%clk 0:02:11]}  Rb7 {[%clk 0:02:16]} 19. Ne2 {[%clk 0:01:58]}  f5 {[%clk 0:02:11]} 20. f4 {[%clk 0:01:45]}  Nf7 {[%clk 0:02:11]} 21. Bg2 {[%clk 0:01:19]}  Rfb8 {[%clk 0:02:11]} 22. exf5 {[%clk 0:01:08]}  Bxf5 {[%clk 0:02:08]} 23. Ra1 {[%clk 0:01:09]}  h5 {[%clk 0:02:04]} 24. Ra3 {[%clk 0:01:04]}  Bf6 {[%clk 0:01:56]} 25. Kh2 {[%clk 0:01:04]}  Kf8 {[%clk 0:01:49]} 26. Bf3 {[%clk 0:01:02]}  Nh6 {[%clk 0:01:49]} 27. Nc3 {[%clk 0:00:48]}  Qd8 {[%clk 0:01:43]} 28. Nce4 {[%clk 0:00:44]}  Bxe4 {[%clk 0:01:27]} 29. Bxe4 {[%clk 0:00:43]}  Kg7 {[%clk 0:01:25]} 30. Bc2 {[%clk 0:00:41]}  Rd7 {[%clk 0:01:12]} 31. Re6 {[%clk 0:00:41]}  Rb6 {[%clk 0:01:05]} 32. Qe2 {[%clk 0:00:41]}  Nb7 {[%clk 0:01:04]} 33. Qe4 {[%clk 0:00:37]}  Qe8 {[%clk 0:01:01]} 34. Nf3 {[%clk 0:00:36]}  Nd8 {[%clk 0:01:00]} 35. Rxf6 {[%clk 0:00:30]}  Kxf6 {[%clk 0:00:59]} 36. Nh4 {[%clk 0:00:30]}  e5 {[%clk 0:00:52]} 37. fxe5+ {[%clk 0:00:30]}  dxe5 {[%clk 0:00:48]} 38. Bxh6 {[%clk 0:00:29]}  Nf7 {[%clk 0:00:39]} 39. Qxg6+ {[%clk 0:00:28]}  Ke7 {[%clk 0:00:39]} 40. Qxb6 {[%clk 0:00:28]}  Rd6 {[%clk 0:00:34]} 41. Qc7+ {[%clk 0:00:27]}  Qd7 {[%clk 0:00:33]} 42. Nf5+ {[%clk 0:00:26]} 1-0


[Site "https://www.chess.com"]

[Event "Titled Tuesday Blitz April 18 Early 2023"]
[White "Matinian, Nikita"]
[Black "Eynullayev, Atilla"]
[WhiteFideId "24129100"]
[BlackFideId "13413570"]
[WhiteElo "2422"]
[BlackElo "2181"]
[Result "0-1"]
[Round "05"]
[TimeControl "180+2"]
[Date "2023.04.18"]
[WhiteClock "0:00:04"]
[BlackClock "0:00:06"]

1. e4 {[%clk 0:03:00]}  c5 {[%clk 0:02:59]} 2. Nf3 {[%clk 0:02:59]}  e6 {[%clk 0:03:00]} 3. d4 {[%clk 0:03:00]}  cxd4 {[%clk 0:03:00]} 4. Nxd4 {[%clk 0:03:01]}  a6 {[%clk 0:03:01]} 5. Nc3 {[%clk 0:03:01]}  b5 {[%clk 0:03:01]} 6. Bd3 {[%clk 0:03:01]}  Bb7 {[%clk 0:03:01]} 7. O-O {[%clk 0:03:00]}  Nc6 {[%clk 0:03:01]} 8. Nxc6 {[%clk 0:02:59]}  Bxc6 {[%clk 0:03:02]} 9. Re1 {[%clk 0:02:59]}  Ne7 {[%clk 0:02:58]} 10. Qh5 {[%clk 0:02:59]}  Qb8 {[%clk 0:02:29]} 11. Bg5 {[%clk 0:02:58]}  Ng6 {[%clk 0:02:23]} 12. a4 {[%clk 0:02:57]}  h6 {[%clk 0:01:59]} 13. Bd2 {[%clk 0:02:49]}  bxa4 {[%clk 0:01:49]} 14. Nxa4 {[%clk 0:02:46]}  Bd6 {[%clk 0:01:39]} 15. g3 {[%clk 0:02:31]}  Ne5 {[%clk 0:01:30]} 16. Bf1 {[%clk 0:02:15]}  O-O {[%clk 0:01:08]} 17. f4 {[%clk 0:02:15]}  Ng6 {[%clk 0:01:07]} 18. f5 {[%clk 0:02:10]}  exf5 {[%clk 0:00:55]} 19. Qxf5 {[%clk 0:01:42]}  Ne5 {[%clk 0:00:55]} 20. b3 {[%clk 0:01:36]}  g6 {[%clk 0:00:39]} 21. Qf2 {[%clk 0:01:34]}  f5 {[%clk 0:00:36]} 22. Bxh6 {[%clk 0:01:30]}  Rf7 {[%clk 0:00:31]} 23. Bf4 {[%clk 0:01:15]}  fxe4 {[%clk 0:00:27]} 24. Re3 {[%clk 0:00:19]}  Ng4 {[%clk 0:00:18]} 25. Qe2 {[%clk 0:00:20]}  Bxf4 {[%clk 0:00:18]} 26. gxf4 {[%clk 0:00:19]}  Nxe3 {[%clk 0:00:19]} 27. Qxe3 {[%clk 0:00:19]}  Qxf4 {[%clk 0:00:16]} 28. Re1 {[%clk 0:00:12]}  Qxe3+ {[%clk 0:00:15]} 29. Rxe3 {[%clk 0:00:13]}  Raf8 {[%clk 0:00:15]} 30. Bc4 {[%clk 0:00:12]}  d5 {[%clk 0:00:15]} 31. Bxa6 {[%clk 0:00:12]}  Rf3 {[%clk 0:00:15]} 32. Re1 {[%clk 0:00:11]}  R8f5 {[%clk 0:00:12]} 33. h4 {[%clk 0:00:07]}  R5f4 {[%clk 0:00:12]} 34. Nc5 {[%clk 0:00:05]}  Rxh4 {[%clk 0:00:06]} 35. Ne6 {[%clk 0:00:04]}  Bd7 {[%clk 0:00:05]} 36. Nd4 {[%clk 0:00:03]}  Rg4+ {[%clk 0:00:05]} 37. Kh2 {[%clk 0:00:03]}  Rf7 {[%clk 0:00:05]} 38. Re3 {[%clk 0:00:01]}  Rh7+ {[%clk 0:00:05]} 39. Rh3 {[%clk 0:00:02]}  Rxh3+ {[%clk 0:00:05]} 40. Kxh3 {[%clk 0:00:03]}  e3 {[%clk 0:00:05]} 41. Be2 {[%clk 0:00:02]}  Rxd4+ {[%clk 0:00:05]} 42. Kg3 {[%clk 0:00:03]}  Rd2 {[%clk 0:00:05]} 43. Kf3 {[%clk 0:00:03]}  d4 {[%clk 0:00:06]} 44. Bc4+ {[%clk 0:00:03]}  Kg7 {[%clk 0:00:06]} 45. b4 {[%clk 0:00:04]}  Bc6+ {[%clk 0:00:06]} 0-1


[Site "https://www.chess.com"]

[Event "Titled Tuesday Blitz April 18 Early 2023"]
[White "Prohaszka, Peter"]
[Black "Ronka, Erik"]
[WhiteFideId "726265"]
[BlackFideId "505080"]
[WhiteElo "2626"]
[BlackElo "2264"]
[Result "1-0"]
[Round "05"]
[TimeControl "180+2"]
[Date "2023.04.18"]
[WhiteClock "0:00:20"]
[BlackClock "0:00:05"]

1. d4 {[%clk 0:02:35]}  d5 {[%clk 0:02:59]} 2. c3 {[%clk 0:02:13]}  c5 {[%clk 0:02:58]} 3. dxc5 {[%clk 0:02:13]}  e6 {[%clk 0:02:51]} 4. b4 {[%clk 0:02:13]}  a5 {[%clk 0:02:21]} 5. e3 {[%clk 0:02:11]}  axb4 {[%clk 0:02:10]} 6. cxb4 {[%clk 0:02:11]}  b6 {[%clk 0:02:02]} 7. Bb5+ {[%clk 0:02:11]}  Bd7 {[%clk 0:02:02]} 8. Bxd7+ {[%clk 0:02:11]}  Qxd7 {[%clk 0:02:01]} 9. a4 {[%clk 0:02:09]}  bxc5 {[%clk 0:01:56]} 10. b5 {[%clk 0:02:10]}  Nf6 {[%clk 0:01:47]} 11. Bb2 {[%clk 0:02:11]}  Qc7 {[%clk 0:01:36]} 12. Nf3 {[%clk 0:02:11]}  Nbd7 {[%clk 0:01:37]} 13. Nbd2 {[%clk 0:02:06]}  c4 {[%clk 0:01:37]} 14. Qc2 {[%clk 0:02:04]}  Bb4 {[%clk 0:01:31]} 15. O-O {[%clk 0:02:04]}  Nc5 {[%clk 0:01:30]} 16. Rfb1 {[%clk 0:01:55]}  Ba5 {[%clk 0:01:26]} 17. Nd4 {[%clk 0:01:20]}  O-O {[%clk 0:01:19]} 18. Nc6 {[%clk 0:00:48]}  Bxd2 {[%clk 0:01:06]} 19. Bxf6 {[%clk 0:00:39]}  gxf6 {[%clk 0:01:02]} 20. Qxd2 {[%clk 0:00:39]}  Rxa4 {[%clk 0:00:23]} 21. Rxa4 {[%clk 0:00:23]}  Nxa4 {[%clk 0:00:24]} 22. Ra1 {[%clk 0:00:23]}  Nc5 {[%clk 0:00:23]} 23. Qd4 {[%clk 0:00:20]}  Nb3 {[%clk 0:00:22]} 24. Qxf6 {[%clk 0:00:18]}  Nxa1 {[%clk 0:00:18]} 25. Qg5+ {[%clk 0:00:18]}  Kh8 {[%clk 0:00:19]} 26. Qf6+ {[%clk 0:00:19]}  Kg8 {[%clk 0:00:19]} 27. Ne7+ {[%clk 0:00:20]}  Qxe7 {[%clk 0:00:17]} 28. Qxe7 {[%clk 0:00:21]}  c3 {[%clk 0:00:16]} 29. Qg5+ {[%clk 0:00:20]}  Kh8 {[%clk 0:00:13]} 30. Qf6+ {[%clk 0:00:21]}  Kg8 {[%clk 0:00:13]} 31. Qxc3 {[%clk 0:00:22]}  Rb8 {[%clk 0:00:07]} 32. Qxa1 {[%clk 0:00:21]}  Rxb5 {[%clk 0:00:08]} 33. h4 {[%clk 0:00:21]}  Rb4 {[%clk 0:00:05]} 34. g3 {[%clk 0:00:20]}  Re4 {[%clk 0:00:05]} 35. h5 {[%clk 0:00:20]}  h6 {[%clk 0:00:05]} 36. Qf6 {[%clk 0:00:20]} 1-0


[Site "https://www.chess.com"]

[Event "Titled Tuesday Blitz April 18 Early 2023"]
[White "Devaev, Alexander"]
[Black "Amilal Munkhdalai"]
[WhiteFideId "4169395"]
[BlackFideId "4903250"]
[WhiteElo "2204"]
[BlackElo "2293"]
[Result "0-1"]
[Round "05"]
[TimeControl "180+2"]
[Date "2023.04.18"]
[WhiteClock "0:00:19"]
[BlackClock "0:01:02"]

1. Nf3 {[%clk 0:02:38]}  Nf6 {[%clk 0:02:59]} 2. c4 {[%clk 0:02:38]}  e6 {[%clk 0:02:56]} 3. Nc3 {[%clk 0:02:39]}  d5 {[%clk 0:02:56]} 4. cxd5 {[%clk 0:02:39]}  exd5 {[%clk 0:02:57]} 5. d4 {[%clk 0:02:39]}  c6 {[%clk 0:02:57]} 6. Bg5 {[%clk 0:02:40]}  Be7 {[%clk 0:02:54]} 7. Bxf6 {[%clk 0:02:40]}  Bxf6 {[%clk 0:02:54]} 8. Qc2 {[%clk 0:02:41]}  O-O {[%clk 0:02:51]} 9. e3 {[%clk 0:02:41]}  Bg4 {[%clk 0:02:51]} 10. Bd3 {[%clk 0:02:42]}  h6 {[%clk 0:02:51]} 11. h3 {[%clk 0:02:42]}  Bxf3 {[%clk 0:02:46]} 12. gxf3 {[%clk 0:02:43]}  Nd7 {[%clk 0:02:44]} 13. O-O-O {[%clk 0:02:43]}  Rc8 {[%clk 0:02:45]} 14. Kb1 {[%clk 0:02:44]}  c5 {[%clk 0:02:37]} 15. Nxd5 {[%clk 0:02:34]}  cxd4 {[%clk 0:02:37]} 16. Qe2 {[%clk 0:02:34]}  Nb6 {[%clk 0:02:24]} 17. Nxf6+ {[%clk 0:02:32]}  Qxf6 {[%clk 0:02:23]} 18. exd4 {[%clk 0:02:33]}  Rfd8 {[%clk 0:02:20]} 19. Qe4 {[%clk 0:02:28]}  g6 {[%clk 0:02:11]} 20. Bc2 {[%clk 0:02:26]}  Rc7 {[%clk 0:02:04]} 21. Bb3 {[%clk 0:02:21]}  Re7 {[%clk 0:01:59]} 22. Qd3 {[%clk 0:01:42]}  Red7 {[%clk 0:01:58]} 23. Rhg1 {[%clk 0:01:41]}  Kg7 {[%clk 0:01:52]} 24. Rg4 {[%clk 0:01:36]}  h5 {[%clk 0:01:50]} 25. Re4 {[%clk 0:01:36]}  a5 {[%clk 0:01:41]} 26. d5 {[%clk 0:01:22]}  a4 {[%clk 0:01:36]} 27. Bc4 {[%clk 0:00:27]}  Nxd5 {[%clk 0:01:18]} 28. Rd4 {[%clk 0:00:23]}  Nf4 {[%clk 0:01:08]} 29. Rxd7 {[%clk 0:00:20]}  Nxd3 {[%clk 0:01:05]} 30. R1xd3 {[%clk 0:00:20]}  Rxd7 {[%clk 0:01:04]} 31. Rxd7 {[%clk 0:00:21]}  Qf5+ {[%clk 0:01:01]} 32. Rd3 {[%clk 0:00:19]}  b5 {[%clk 0:01:02]} 0-1


[Site "https://www.chess.com"]

[Event "Titled Tuesday Blitz April 18 Early 2023"]
[White "Gil Alba, Hector Luis"]
[Black "O`Gorman, Tom"]
[WhiteFideId "3504670"]
[BlackFideId "2508249"]
[WhiteElo "2331"]
[BlackElo "2271"]
[Result "0-1"]
[Round "05"]
[TimeControl "180+2"]
[Date "2023.04.18"]
[WhiteClock "0:00:09"]
[BlackClock "0:00:16"]

1. e4 {[%clk 0:03:00]}  c6 {[%clk 0:02:53]} 2. d4 {[%clk 0:03:00]}  d5 {[%clk 0:02:54]} 3. e5 {[%clk 0:03:00]}  Bf5 {[%clk 0:02:54]} 4. h4 {[%clk 0:02:57]}  h6 {[%clk 0:02:54]} 5. g4 {[%clk 0:02:47]}  Bd7 {[%clk 0:02:53]} 6. f4 {[%clk 0:02:41]}  h5 {[%clk 0:02:52]} 7. gxh5 {[%clk 0:02:31]}  Nh6 {[%clk 0:02:50]} 8. Bh3 {[%clk 0:02:26]}  Bxh3 {[%clk 0:02:48]} 9. Nxh3 {[%clk 0:02:26]}  e6 {[%clk 0:02:49]} 10. Ng5 {[%clk 0:02:14]}  c5 {[%clk 0:02:49]} 11. c3 {[%clk 0:02:13]}  Nc6 {[%clk 0:02:49]} 12. Be3 {[%clk 0:02:06]}  Qb6 {[%clk 0:02:47]} 13. Qb3 {[%clk 0:01:49]}  Nf5 {[%clk 0:02:32]} 14. Bf2 {[%clk 0:01:46]}  cxd4 {[%clk 0:02:32]} 15. Nd2 {[%clk 0:01:07]}  Bc5 {[%clk 0:02:06]} 16. c4 {[%clk 0:00:57]}  Qxb3 {[%clk 0:01:55]} 17. axb3 {[%clk 0:00:51]}  O-O-O {[%clk 0:01:54]} 18. Nxf7 {[%clk 0:00:45]}  Nb4 {[%clk 0:01:50]} 19. Ke2 {[%clk 0:00:39]}  Rxh5 {[%clk 0:01:15]} 20. Nxd8 {[%clk 0:00:38]}  Kxd8 {[%clk 0:01:16]} 21. Ra5 {[%clk 0:00:24]}  Bb6 {[%clk 0:00:47]} 22. Ra4 {[%clk 0:00:22]}  a5 {[%clk 0:00:39]} 23. Rxb4 {[%clk 0:00:21]}  axb4 {[%clk 0:00:39]} 24. cxd5 {[%clk 0:00:21]}  exd5 {[%clk 0:00:38]} 25. Kd3 {[%clk 0:00:17]}  Kd7 {[%clk 0:00:36]} 26. Nf3 {[%clk 0:00:17]}  Ke6 {[%clk 0:00:36]} 27. Ng5+ {[%clk 0:00:17]}  Ke7 {[%clk 0:00:33]} 28. Nf3 {[%clk 0:00:18]}  Rh6 {[%clk 0:00:28]} 29. Nxd4 {[%clk 0:00:18]}  Bxd4 {[%clk 0:00:27]} 30. Bxd4 {[%clk 0:00:18]}  Rxh4 {[%clk 0:00:26]} 31. Rxh4 {[%clk 0:00:17]}  Nxh4 {[%clk 0:00:27]} 32. Bc5+ {[%clk 0:00:17]}  Ke6 {[%clk 0:00:28]} 33. Bxb4 {[%clk 0:00:17]}  Kf5 {[%clk 0:00:24]} 34. Bd2 {[%clk 0:00:17]}  Nf3 {[%clk 0:00:21]} 35. Be3 {[%clk 0:00:16]}  g6 {[%clk 0:00:14]} 36. b4 {[%clk 0:00:15]}  g5 {[%clk 0:00:14]} 37. fxg5 {[%clk 0:00:15]}  Nxe5+ {[%clk 0:00:14]} 38. Kd4 {[%clk 0:00:16]}  Ke6 {[%clk 0:00:13]} 39. Kc5 {[%clk 0:00:14]}  Nc4 {[%clk 0:00:13]} 40. Bd4 {[%clk 0:00:14]}  Nd2 {[%clk 0:00:13]} 41. g6 {[%clk 0:00:12]}  Ne4+ {[%clk 0:00:13]} 42. Kb6 {[%clk 0:00:12]}  Nd6 {[%clk 0:00:13]} 43. g7 {[%clk 0:00:12]}  Kf7 {[%clk 0:00:14]} 44. Kc7 {[%clk 0:00:12]}  Nb5+ {[%clk 0:00:14]} 45. Kxb7 {[%clk 0:00:12]}  Nxd4 {[%clk 0:00:15]} 46. Kc7 {[%clk 0:00:12]}  Nb5+ {[%clk 0:00:14]} 47. Kc6 {[%clk 0:00:12]}  d4 {[%clk 0:00:15]} 48. Kxb5 {[%clk 0:00:12]}  d3 {[%clk 0:00:15]} 49. Kc6 {[%clk 0:00:12]}  d2 {[%clk 0:00:15]} 50. b5 {[%clk 0:00:10]}  d1=Q {[%clk 0:00:16]} 51. b6 {[%clk 0:00:10]}  Qd8 {[%clk 0:00:16]} 52. b7 {[%clk 0:00:09]}  Qb8 {[%clk 0:00:16]} 0-1


[Site "https://www.chess.com"]